bitfinex/quotes_BTCUSD_20240721
["timestamp","ask_amount","ask_price","bid_price","bid_amount"]
[1721599366046,0.082297,68354.0,68352.0,0.002794]
[1721599366047,0.21061991,68353.0,68352.0,0.002794]
[1721599366173,0.21061991,68353.0,68335.0,0.100924]
[1721599366389,0.21032887,68353.0,68349.0,0.005]
[1721599366814,0.146304,68351.0,68349.0,0.005]
[1721599367055,0.35662887,68353.0,68349.0,0.005]
[1721599367262,0.146301,68352.0,68349.0,0.005]
[1721599367636,0.0606,68350.0,68349.0,0.019]
[1721599367853,0.0606,68350.0,68342.0,0.07348942]
[1721599368077,0.3,68351.0,68350.0,0.146305]
[1721599368492,0.3,68351.0,68349.0,0.08748942]
[1721599368493,0.3,68351.0,68349.0,0.07348942]
[1721599368704,0.3,68351.0,68350.0,0.002794]
[1721599368906,0.3,68351.0,68350.0,0.44171]
[1721599369031,0.3,68351.0,68350.0,0.438916]
[1721599369851,0.3,68351.0,68350.0,0.442916]
[1721599370052,0.3,68351.0,68350.0,0.004]
[1721599370498,0.3,68351.0,68350.0,0.164305]
[1721599370740,0.3,68351.0,68350.0,0.150305]
[1721599371148,0.3,68351.0,68350.0,0.164305]
[1721599371782,0.3,68351.0,68350.0,0.160305]
[1721599372068,0.3,68351.0,68350.0,0.014]
[1721599372276,0.301,68351.0,68350.0,0.021]
[1721599372857,0.62457361,68351.0,68350.0,0.021]
[1721599373099,0.74062291,68351.0,68350.0,0.021]
[1721599373307,1.03322991,68351.0,68350.0,0.021]
[1721599373510,1.32583691,68351.0,68350.0,0.021]
[1721599373722,0.74062291,68351.0,68350.0,0.021]
[1721599373928,0.59431991,68351.0,68350.0,0.007]
[1721599374134,0.74062291,68351.0,68350.0,0.007]
[1721599374367,0.73962291,68351.0,68350.0,0.014]
[1721599374585,0.73962291,68351.0,68350.0,0.004]
[1721599374586,0.4463,68351.0,68350.0,0.004]
[1721599374803,0.4463,68351.0,68350.0,0.018]
[1721599375178,0.4463,68351.0,68350.0,0.014]
[1721599375557,0.4463,68351.0,68340.0,0.002794]
[1721599375788,0.4463,68351.0,68339.0,0.246328]
[1721599375962,0.4463,68351.0,68350.0,0.004]
[1721599376790,0.59331991,68351.0,68350.0,0.018]
[1721599377000,1.03222991,68351.0,68350.0,0.018]
[1721599377204,1.03222991,68351.0,68350.0,0.004]
[1721599377450,1.03222991,68351.0,68335.0,0.17441342]
[1721599377451,0.146309,68349.0,68337.0,0.102794]
[1721599377667,0.14701991,68348.0,68340.0,0.004]
[1721599377876,0.14701991,68348.0,68341.0,0.12150826]
[1721599378084,0.0898251,68351.0,68343.0,0.07348942]
[1721599378527,0.0898251,68351.0,68350.0,0.004]
[1721599378994,0.0898251,68351.0,68343.0,0.07348942]
[1721599379211,0.0898251,68351.0,68344.0,0.12150027]
[1721599379425,0.0898251,68351.0,68345.0,0.12429427]
[1721599379659,0.0898251,68351.0,68346.0,0.12150027]
[1721599379893,0.0088251,68351.0,68344.0,0.372834]
[1721599380090,0.0088251,68351.0,68348.0,0.146309]
[1721599380348,0.0088251,68351.0,68350.0,0.21979442]
[1721599380556,0.0088251,68351.0,68350.0,1.02651048]
[1721599380797,0.0088251,68351.0,68350.0,1.31912148]
[1721599381680,0.0088251,68351.0,68350.0,1.82055239]
[1721599381915,0.0088251,68351.0,68350.0,1.881288]
[1721599382359,0.0088251,68351.0,68350.0,1.931288]
[1721599382640,0.0098251,68351.0,68350.0,1.95826223]
[1721599382858,0.0098251,68351.0,68350.0,3.47045652]
[1721599383070,2.3254651,68352.0,68351.0,1.761431]
[1721599383326,2.2669451,68352.0,68351.0,3.7145815]
[1721599383541,2.1791651,68352.0,68351.0,3.7627935]
[1721599384176,2.1791651,68352.0,68351.0,3.4323865]
[1721599384380,2.1791651,68352.0,68351.0,3.0246265]
[1721599384599,2.1791651,68352.0,68351.0,2.69063652]
[1721599385039,2.1791651,68352.0,68351.0,2.89243543]
[1721599385273,2.1791651,68352.0,68351.0,2.75463652]
[1721599385478,2.1791651,68352.0,68351.0,2.76860924]
[1721599385691,2.1791651,68352.0,68351.0,2.75460924]
[1721599385926,2.1791651,68352.0,68351.0,2.74060924]
[1721599386141,2.1791651,68352.0,68351.0,2.75460924]
[1721599386367,2.1791651,68352.0,68351.0,3.29721624]
[1721599386368,2.11361033,68352.0,68351.0,3.29721624]
[1721599386602,2.11361033,68352.0,68351.0,3.45740224]
[1721599386820,2.11361033,68352.0,68351.0,2.75460924]
[1721599387033,2.11361033,68352.0,68351.0,2.76192924]
[1721599387449,2.11361033,68352.0,68351.0,2.95532224]
[1721599387668,2.11361033,68352.0,68351.0,2.16932224]
[1721599387874,2.11361033,68352.0,68351.0,2.47593224]
[1721599388102,2.11361033,68352.0,68351.0,2.46193224]
[1721599388320,2.11361033,68352.0,68351.0,2.47594693]
[1721599390623,2.11361033,68352.0,68351.0,3.31594693]
[1721599390624,2.11142212,68352.0,68351.0,3.31594693]
[1721599391212,2.11142212,68352.0,68351.0,3.13377391]
[1721599391464,2.11142212,68352.0,68351.0,3.65854595]
[1721599391842,2.08216212,68352.0,68351.0,4.12870995]
[1721599392044,2.08216212,68352.0,68351.0,3.30854595]
[1721599392297,2.08216212,68352.0,68351.0,2.76593895]
[1721599392494,2.08216212,68352.0,68351.0,2.22863195]
[1721599392696,2.08216212,68352.0,68351.0,2.16791027]
[1721599393105,2.08216212,68352.0,68351.0,2.46051727]
[1721599393341,2.08216212,68352.0,68351.0,2.62124511]
[1721599393545,2.08216212,68352.0,68351.0,3.05535211]
[1721599393954,1.99438212,68352.0,68351.0,3.76644511]
[1721599394160,1.72626633,68352.0,68351.0,4.20210856]
[1721599394371,1.63848633,68352.0,68351.0,4.18931538]
[1721599394574,1.63848633,68352.0,68351.0,4.18931626]
[1721599394777,1.63848633,68352.0,68351.0,4.18931563]
[1721599394983,1.63848633,68352.0,68351.0,4.20331563]
[1721599395202,1.63848633,68352.0,68351.0,2.926059]
[1721599395416,1.63848633,68352.0,68351.0,2.35610834]
[1721599395614,1.63848633,68352.0,68351.0,2.37010834]
[1721599395811,1.63848633,68352.0,68351.0,2.60200153]
[1721599396025,1.63848633,68352.0,68351.0,2.21889453]
[1721599397056,1.63848633,68352.0,68351.0,0.43535762]
[1721599397267,1.63848633,68352.0,68351.0,0.31393]
[1721599397480,1.63932633,68352.0,68351.0,0.32793]
[1721599397687,1.63932633,68352.0,68351.0,0.31393]
[1721599398108,1.63932633,68352.0,68351.0,0.32793]
[1721599398316,1.63932633,68352.0,68351.0,0.31393]
[1721599398735,1.63932633,68352.0,68351.0,0.32793]
[1721599399147,1.63932633,68352.0,68351.0,0.31393]
[1721599399968,1.66232633,68352.0,68351.0,0.31393]
[1721599400182,1.63932633,68352.0,68351.0,0.31393]
[1721599400386,1.63932633,68352.0,68351.0,1.58507391]
[1721599400794,1.63932633,68352.0,68351.0,1.12133316]
[1721599401001,1.63932633,68352.0,68351.0,1.10733316]
[1721599401223,1.63932633,68352.0,68351.0,1.13133466]
[1721599401431,1.63932633,68352.0,68351.0,1.42394166]
[1721599401637,1.63932633,68352.0,68351.0,1.71654866]
[1721599401851,1.63932633,68352.0,68351.0,1.70254866]
[1721599402064,1.63932633,68352.0,68351.0,1.74254866]
[1721599402487,1.63932633,68352.0,68351.0,1.76754866]
[1721599402702,1.63932633,68352.0,68351.0,2.32827666]
[1721599402913,1.63932633,68352.0,68351.0,2.60988366]
[1721599403338,1.63932633,68352.0,68351.0,2.60985853]
[1721599403551,1.63932633,68352.0,68351.0,2.79945853]
[1721599403763,1.63732633,68352.0,68351.0,2.78545853]
[1721599404204,1.63732633,68352.0,68351.0,3.07806553]
[1721599404412,1.63732633,68352.0,68351.0,2.79945853]
[1721599405247,1.63732633,68352.0,68351.0,2.78545853]
[1721599405455,1.60806633,68352.0,68351.0,2.81345853]
[1721599405671,1.52028633,68352.0,68351.0,3.60645853]
[1721599405937,1.49102633,68352.0,68351.0,3.59245853]
[1721599406124,1.49102633,68352.0,68351.0,3.89906553]
[1721599406354,1.49102633,68352.0,68351.0,3.60643724]
[1721599406586,1.49102633,68352.0,68351.0,3.58343724]
[1721599406821,1.49102633,68352.0,68351.0,3.01943703]
[1721599407048,1.49102633,68352.0,68351.0,3.08343703]
[1721599407484,1.49102633,68352.0,68351.0,3.06943703]
[1721599407705,1.49102633,68352.0,68351.0,3.24923475]
[1721599407911,1.49102633,68352.0,68351.0,3.22123475]
[1721599408112,1.49102633,68352.0,68351.0,3.20723475]
[1721599408322,1.49102633,68352.0,68351.0,3.24423475]
[1721599408533,1.49102633,68352.0,68351.0,3.71899778]
[1721599408991,1.49102633,68352.0,68351.0,3.20723475]
[1721599409245,1.49102633,68352.0,68351.0,3.08579841]
[1721599409456,1.09102633,68352.0,68351.0,3.40339733]
[1721599409889,1.09102633,68352.0,68351.0,3.69600433]
[1721599410292,1.09102633,68352.0,68351.0,3.40339733]
[1721599410514,1.09102633,68352.0,68351.0,3.38939733]
[1721599410720,1.09102633,68352.0,68351.0,3.40339733]
[1721599410957,1.09102633,68352.0,68351.0,3.41739733]
[1721599411440,1.09102633,68352.0,68351.0,3.30339733]
[1721599411636,1.09102633,68352.0,68351.0,3.31739733]
[1721599412293,1.09102633,68352.0,68351.0,2.95307863]
[1721599412514,1.09102633,68352.0,68351.0,3.31738894]
[1721599413389,1.09102633,68352.0,68351.0,3.26738894]
[1721599413618,1.09102633,68352.0,68351.0,3.31738894]
[1721599414013,1.06809542,68352.0,68351.0,3.42507894]
[1721599414225,1.06809542,68352.0,68351.0,3.60999594]
[1721599414433,1.06809542,68352.0,68351.0,3.70902794]
[1721599414684,1.06809542,68352.0,68351.0,3.75902794]
[1721599414908,1.06809542,68352.0,68351.0,3.60999594]
[1721599415114,1.583,68353.0,68352.0,1.43963991]
[1721599415302,1.583,68353.0,68352.0,3.31012347]
[1721599415608,1.583,68353.0,68352.0,3.36804826]
[1721599415819,1.583,68353.0,68352.0,3.66065026]
[1721599416046,1.583,68353.0,68352.0,3.31804826]
[1721599416271,1.583,68353.0,68352.0,3.88204826]
[1721599416473,1.583,68353.0,68352.0,3.38204826]
[1721599416675,1.583,68353.0,68352.0,3.39604826]
[1721599417536,1.583,68353.0,68352.0,3.29604826]
[1721599417708,1.583,68353.0,68352.0,3.34604826]
[1721599417915,1.583,68353.0,68352.0,3.29604826]
[1721599418112,1.583,68353.0,68352.0,3.01209499]
[1721599418492,1.583,68353.0,68352.0,2.9981076]
[1721599418691,1.583,68353.0,68352.0,3.0121076]
[1721599418903,1.57523451,68353.0,68352.0,3.01211293]
[1721599419414,1.57523451,68353.0,68352.0,2.99811293]
[1721599419617,1.57523451,68353.0,68352.0,3.01211293]
[1721599421636,1.57523451,68353.0,68352.0,3.01211354]
[1721599422505,1.57523451,68353.0,68352.0,2.66951154]
[1721599422920,1.57523451,68353.0,68352.0,2.7200412]
[1721599423353,1.57523451,68353.0,68352.0,2.66951154]
[1721599423574,1.71803451,68353.0,68352.0,0.55766006]
[1721599424242,1.71803451,68353.0,68352.0,0.54366006]
[1721599424463,1.71803451,68353.0,68352.0,0.58251191]
[1721599424896,1.71803451,68353.0,68352.0,0.43621091]
[1721599425105,1.71803451,68353.0,68352.0,0.42221091]
[1721599425742,1.71803451,68353.0,68352.0,0.40821091]
[1721599425942,1.71803451,68353.0,68352.0,0.43621091]
[1721599426150,1.71803451,68353.0,68352.0,0.58251191]
[1721599426353,1.71803451,68353.0,68352.0,1.27519462]
[1721599426766,1.71803451,68353.0,68352.0,1.27019462]
[1721599427171,1.71803451,68353.0,68352.0,1.28419462]
[1721599427373,1.71803451,68353.0,68352.0,0.97759262]
[1721599427580,1.71803451,68353.0,68352.0,0.87011391]
[1721599427822,1.71803451,68353.0,68352.0,0.9915913]
[1721599428240,1.71803451,68353.0,68352.0,0.9825913]
[1721599428450,1.57523451,68353.0,68352.0,1.42221321]
[1721599428649,1.57523451,68353.0,68352.0,1.52221321]
[1721599428853,1.57523451,68353.0,68352.0,1.82381521]
[1721599429261,1.57523451,68353.0,68352.0,1.81481521]
[1721599429471,1.57523451,68353.0,68352.0,1.80081521]
[1721599429692,1.57523451,68353.0,68352.0,1.92554585]
[1721599429890,1.57523451,68353.0,68352.0,1.88954585]
[1721599430319,1.57523451,68353.0,68352.0,1.89046985]
[1721599430528,1.57607451,68353.0,68352.0,1.89044885]
[1721599430736,1.57607451,68353.0,68352.0,1.75826182]
[1721599430940,1.57607451,68353.0,68352.0,1.9404484]
[1721599431123,1.57607451,68353.0,68352.0,1.75826182]
[1721599431328,1.57607451,68353.0,68352.0,1.94044357]
[1721599431759,1.57607451,68353.0,68352.0,2.23304557]
[1721599432628,1.57607451,68353.0,68352.0,2.21904557]
[1721599432846,1.57607451,68353.0,68352.0,1.87644357]
[1721599433466,1.57607451,68353.0,68352.0,1.89044357]
[1721599433644,1.57607451,68353.0,68352.0,2.69044357]
[1721599433857,1.57607451,68353.0,68352.0,2.67645101]
[1721599434083,1.57607451,68353.0,68352.0,2.78935101]
[1721599434507,1.57607451,68353.0,68352.0,3.08195301]
[1721599434708,1.57607451,68353.0,68352.0,3.09595301]
[1721599434941,1.57607451,68353.0,68352.0,3.08195301]
[1721599435122,1.57607451,68353.0,68352.0,3.09595301]
[1721599435534,1.57607451,68353.0,68352.0,2.80335101]
[1721599435741,1.57607451,68353.0,68352.0,2.78935101]
[1721599436184,1.57607451,68353.0,68352.0,3.09595301]
[1721599436438,1.57607451,68353.0,68352.0,2.78935101]
[1721599436645,1.57607451,68353.0,68352.0,2.80335101]
[1721599437066,1.57607451,68353.0,68352.0,2.73935101]
[1721599437284,1.57607451,68353.0,68352.0,3.34595301]
[1721599437498,1.57607451,68353.0,68352.0,3.55896084]
[1721599437721,1.57607451,68353.0,68352.0,3.75514997]
[1721599437926,1.57607451,68353.0,68352.0,3.57296084]
[1721599438132,1.57607451,68353.0,68352.0,3.55896084]
[1721599438558,1.57607451,68353.0,68352.0,3.57296084]
[1721599438980,1.57607451,68353.0,68352.0,3.55896084]
[1721599439170,1.57607451,68353.0,68352.0,3.57296084]
[1721599439587,1.57607451,68353.0,68352.0,3.55896084]
[1721599439820,1.57607451,68353.0,68352.0,3.45150142]
[1721599440022,1.57607451,68353.0,68352.0,3.57293469]
[1721599440878,1.57607451,68353.0,68352.0,3.86553669]
[1721599441083,1.57607451,68353.0,68352.0,3.57293469]
[1721599441533,1.36812467,68353.0,68352.0,3.86553669]
[1721599441733,1.24209402,68353.0,68352.0,4.87052888]
[1721599441935,1.20824402,68353.0,68352.0,4.87048627]
[1721599442177,1.13655303,68353.0,68352.0,4.56100297]
[1721599442387,1.02669303,68353.0,68352.0,4.62171386]
[1721599442605,1.02669303,68353.0,68352.0,4.65507283]
[1721599442823,1.02669303,68353.0,68352.0,4.67204371]
[1721599443030,1.02669303,68353.0,68352.0,4.65804371]
[1721599443477,0.0006089,68373.0,68368.0,0.8]
[1721599443735,0.08746526,68419.0,68408.0,0.292363]
[1721599443949,0.11770157,68421.0,68420.0,0.438468]
[1721599443950,0.00837,68421.0,68420.0,0.438468]
[1721599444385,0.00837,68421.0,68420.0,0.923458]
[1721599444592,0.00837,68421.0,68420.0,0.75249534]
[1721599444819,0.1463,68420.0,68404.0,0.05040647]
[1721599445047,0.05,68409.0,68394.0,0.5]
[1721599445256,0.0633,68403.0,68379.0,0.5]
[1721599445521,0.002794,68412.0,68411.0,0.438525]
[1721599445737,0.07389305,68421.0,68407.0,0.065]
[1721599445738,0.002794,68420.0,68407.0,0.5]
[1721599445952,0.00837,68421.0,68407.0,0.5]
[1721599445953,0.00837,68421.0,68420.0,0.438468]
[1721599446179,0.00837,68421.0,68420.0,1.17010991]
[1721599446410,0.00837,68421.0,68420.0,1.46242191]
[1721599446873,0.00837,68421.0,68420.0,1.56242191]
[1721599447293,0.00337,68421.0,68420.0,1.56242191]
[1721599447917,0.00337,68421.0,68420.0,1.27010991]
[1721599448122,0.00337,68421.0,68420.0,1.32010991]
[1721599448335,0.00337,68421.0,68420.0,1.75422191]
[1721599448560,0.121401,68437.0,68428.0,1.230695]
[1721599448773,0.121401,68437.0,68428.0,2.13576233]
[1721599448992,0.121401,68437.0,68428.0,2.23576233]
[1721599449201,0.0156383,68429.0,68428.0,2.23576233]
[1721599449407,0.2523,68465.0,68458.0,0.04981691]
[1721599449614,0.44093655,68461.0,68458.0,0.04981691]
[1721599449861,0.44093655,68461.0,68445.0,0.07348942]
[1721599449862,0.2523,68465.0,68463.0,0.04538028]
[1721599450067,0.292071,68477.0,68463.0,0.04538028]
[1721599450068,0.2623,68473.0,68463.0,0.04538028]
[1721599450284,0.2523,68473.0,68464.0,0.04538028]
[1721599450555,0.2523,68473.0,68465.0,0.002794]
[1721599450778,0.39931991,68473.0,68465.0,0.002794]
[1721599450985,0.292099,68470.0,68460.0,0.002794]
[1721599451206,0.2623,68464.0,68453.0,0.1188697]
[1721599451418,0.2623,68464.0,68455.0,0.07348942]
[1721599451626,0.146068,68462.0,68456.0,0.29216]
[1721599451888,0.2623,68464.0,68458.0,0.05938028]
[1721599452085,0.2623,68472.0,68465.0,0.04638028]
[1721599452333,0.1435,68467.0,68466.0,0.002794]
[1721599452534,0.29051991,68467.0,68460.0,0.005]
[1721599452709,0.700505,68461.0,68460.0,0.005]
[1721599452930,0.764305,68461.0,68460.0,0.005]
[1721599453157,1.20346191,68461.0,68460.0,0.005]
[1721599453369,1.20346191,68461.0,68456.0,0.29316]
[1721599453370,0.438231,68457.0,68456.0,0.29316]
[1721599453597,0.0638,68455.0,68438.0,0.04538028]
[1721599453812,0.0638,68440.0,68437.0,0.04538028]
[1721599454231,0.0797,68439.0,68437.0,0.04538028]
[1721599454467,0.0797,68439.0,68435.0,0.07348942]
[1721599454680,0.292235,68438.0,68435.0,0.07348942]
[1721599454926,0.146121,68436.0,68435.0,0.07348942]
[1721599455152,0.146125,68435.0,68431.0,0.04538028]
[1721599455363,0.0797,68439.0,68437.0,0.006]
[1721599455581,0.146135,68430.0,68426.0,0.04538028]
[1721599455786,0.146121,68436.0,68435.0,0.014]
[1721599456000,0.023,68438.0,68427.0,0.07348942]
[1721599456228,0.438364,68436.0,68435.0,0.001]
[1721599456433,0.1414,68431.0,68424.0,0.04538028]
[1721599456652,0.146141,68427.0,68426.0,0.07348942]
[1721599456885,0.292274,68429.0,68417.0,0.04538028]
[1721599457145,0.146145,68425.0,68422.0,0.07348942]
[1721599457363,0.1414,68431.0,68424.0,0.04538028]
[1721599457596,0.146134,68430.0,68429.0,0.07348942]
[1721599458005,0.438403,68430.0,68429.0,0.07348942]
[1721599458653,0.438403,68430.0,68415.0,0.1188697]
[1721599458654,0.17001991,68430.0,68415.0,0.1188697]
[1721599458875,0.17001991,68430.0,68426.0,0.07348942]
[1721599458876,0.438423,68427.0,68426.0,0.07348942]
[1721599459087,0.730705,68427.0,68426.0,0.07348942]
[1721599459294,0.753705,68427.0,68426.0,0.07348942]
[1721599460349,0.461423,68427.0,68426.0,0.07348942]
[1721599460762,0.1414,68431.0,68426.0,0.07348942]
[1721599460981,0.001,68430.0,68427.0,0.002794]
[1721599461715,0.146139,68428.0,68427.0,0.002794]
[1721599461959,0.433667,68431.0,68426.0,0.07348942]
[1721599462204,0.433667,68431.0,68427.0,0.007]
[1721599462205,0.146139,68428.0,68427.0,0.007]
[1721599462403,0.153136,68430.0,68427.0,0.008]
[1721599462744,0.154136,68430.0,68427.0,0.015]
[1721599463134,0.008,68430.0,68427.0,0.06038028]
[1721599463342,0.008,68430.0,68428.0,0.002794]
[1721599463583,0.002,68430.0,68428.0,0.002794]
[1721599463927,0.002,68430.0,68427.0,0.014924]
[1721599463928,0.730695,68428.0,68427.0,0.014924]
[1721599464099,1.19299291,68428.0,68427.0,0.014924]
[1721599464673,0.90071491,68428.0,68427.0,0.000924]
[1721599465076,0.4097,68431.0,68427.0,0.000924]
[1721599465077,0.4037,68431.0,68427.0,0.000924]
[1721599465276,0.1414,68431.0,68430.0,0.1188697]
[1721599465485,0.2835766,68431.0,68430.0,0.07348942]
[1721599465895,0.146136,68429.0,68428.0,0.002]
[1721599466137,0.730682,68429.0,68428.0,0.002]
[1721599466360,0.940182,68429.0,68428.0,0.002]
[1721599466534,0.940182,68429.0,68427.0,0.000924]
[1721599466535,0.730695,68428.0,68427.0,0.000924]
[1721599466744,0.731695,68428.0,68427.0,0.009924]
[1721599466970,0.731695,68428.0,68427.0,0.010924]
[1721599467195,0.754695,68428.0,68427.0,0.010924]
[1721599467436,0.754695,68428.0,68427.0,0.009924]
[1721599467664,0.90471491,68428.0,68427.0,0.009924]
[1721599468089,0.004,68428.0,68427.0,0.009924]
[1721599468491,0.003,68428.0,68427.0,0.000924]
[1721599468921,0.149139,68428.0,68427.0,0.000924]
[1721599469097,0.441417,68428.0,68427.0,0.000924]
[1721599469705,0.442417,68428.0,68427.0,0.009924]
[1721599470152,0.439417,68428.0,68427.0,0.009924]
[1721599470350,0.439417,68428.0,68427.0,0.012924]
[1721599470755,0.439417,68428.0,68427.0,0.009924]
[1721599470927,0.438417,68428.0,68427.0,0.000924]
[1721599471133,0.443417,68428.0,68427.0,0.014924]
[1721599471332,0.442417,68428.0,68427.0,0.000924]
[1721599471531,0.004,68428.0,68427.0,0.000924]
[1721599471732,0.151139,68428.0,68427.0,0.009924]
[1721599472132,0.150139,68428.0,68427.0,0.000924]
[1721599472414,0.150139,68428.0,68427.0,0.014924]
[1721599472415,0.005,68428.0,68427.0,0.014924]
[1721599472660,0.005,68428.0,68427.0,0.000924]
[1721599472880,0.001,68428.0,68427.0,0.000924]
[1721599473084,0.001,68428.0,68427.0,0.003924]
[1721599473085,0.147139,68428.0,68427.0,0.003924]
[1721599473292,0.731695,68428.0,68427.0,0.003924]
[1721599473504,1.74502659,68428.0,68427.0,0.003924]
[1721599473721,2.03730459,68428.0,68427.0,0.003924]
[1721599473925,1.74502659,68428.0,68427.0,0.003924]
[1721599474130,1.74602659,68428.0,68427.0,0.012924]
[1721599474540,0.14618,68409.0,68401.0,0.002794]
[1721599474746,0.05,68427.0,68406.0,0.04538028]
[1721599474747,0.0635,68414.0,68406.0,0.04538028]
[1721599474955,0.0635,68414.0,68407.0,0.002794]
[1721599475168,0.0635,68414.0,68406.0,0.04538028]
[1721599475169,0.146173,68413.0,68406.0,0.04538028]
[1721599475391,0.06344,68414.0,68406.0,0.04538028]
[1721599475609,0.355778,68414.0,68405.0,0.07348942]
[1721599475838,0.14618,68409.0,68406.0,0.002794]
[1721599476058,0.292342,68413.0,68405.0,0.07348942]
[1721599476276,0.146186,68406.0,68405.0,0.07348942]
[1721599476512,0.438558,68406.0,68405.0,0.07348942]
[1721599476733,0.0763,68398.0,68391.0,0.07348942]
[1721599476959,0.146209,68396.0,68391.0,0.07348942]
[1721599477169,0.17001991,68395.0,68384.0,0.07348942]
[1721599477414,0.05,68393.0,68384.0,0.07348942]
[1721599477633,0.292441,68390.0,68384.0,0.07348942]
[1721599477852,0.023,68392.0,68384.0,0.07348942]
[1721599478054,0.14623,68385.0,68384.0,0.07348942]
[1721599478279,0.146239,68381.0,68372.0,0.04538028]
[1721599478495,0.0613,68386.0,68374.0,0.12144353]
[1721599478738,0.0797,68380.0,68371.0,0.004]
[1721599478945,0.43875,68376.0,68375.0,0.07348942]
[1721599479153,0.43950791,68379.0,68366.0,0.07348942]
[1721599479154,0.292499,68377.0,68366.0,0.07348942]
[1721599479362,0.292508,68375.0,68366.0,0.07348942]
[1721599479568,0.45881991,68379.0,68366.0,0.07348942]
[1721599479782,0.315492,68378.0,68373.0,0.07348942]
[1721599479994,0.19701991,68377.0,68366.0,0.07348942]
[1721599480203,0.292527,68370.0,68366.0,0.07348942]
[1721599480433,0.146269,68367.0,68366.0,0.07348942]
[1721599480637,0.146257,68373.0,68362.0,0.04538028]
[1721599480850,0.023,68372.0,68371.0,0.07348942]
[1721599481303,0.023,68374.0,68371.0,0.07348942]
[1721599481517,0.17001991,68374.0,68371.0,0.07348942]
[1721599481745,0.003,68378.0,68371.0,0.07348942]
[1721599481950,0.146248,68377.0,68372.0,0.002794]
[1721599482153,0.003,68378.0,68372.0,0.002794]
[1721599482355,0.149246,68378.0,68372.0,0.002794]
[1721599482583,0.149246,68378.0,68371.0,0.07348942]
[1721599482584,0.003,68378.0,68371.0,0.07348942]
[1721599482792,0.00282413,68378.0,68372.0,0.002794]
[1721599483001,0.0797,68380.0,68372.0,0.002794]
[1721599483002,0.146255,68374.0,68372.0,0.002794]
[1721599483206,0.169256,68373.0,68371.0,0.17648942]
[1721599483415,0.023,68373.0,68371.0,0.17648942]
[1721599483620,0.14701991,68377.0,68371.0,0.17348942]
[1721599483621,0.024,68374.0,68371.0,0.17348942]
[1721599483773,0.001,68374.0,68371.0,0.17348942]
[1721599483980,0.001,68374.0,68372.0,0.002794]
[1721599484187,0.002,68374.0,68372.0,0.002794]
[1721599484397,0.001,68374.0,68372.0,0.002794]
[1721599484804,0.002,68374.0,68373.0,0.48414928]
[1721599485010,0.001,68374.0,68373.0,0.04538028]
[1721599485235,0.002,68374.0,68373.0,0.04538028]
[1721599485441,0.002,68374.0,68372.0,0.002794]
[1721599485641,0.002,68374.0,68373.0,0.04538028]
[1721599486071,0.002,68374.0,68373.0,0.48414928]
[1721599486696,0.002,68374.0,68373.0,0.58414928]
[1721599486904,0.002,68374.0,68373.0,0.29163628]
[1721599487111,0.002,68374.0,68373.0,0.15338028]
[1721599487112,0.003,68374.0,68373.0,0.15338028]
[1721599487252,0.001,68374.0,68373.0,0.108]
[1721599487438,0.001,68374.0,68373.0,0.111]
[1721599487655,0.14801991,68374.0,68373.0,0.011]
[1721599487835,0.2061611,68374.0,68373.0,0.012]
[1721599488083,0.2061611,68374.0,68373.0,0.023]
[1721599488084,0.31827391,68374.0,68373.0,0.023]
[1721599488256,0.17201991,68374.0,68373.0,0.023]
[1721599488455,0.001,68374.0,68373.0,0.012]
[1721599488844,0.002,68374.0,68373.0,0.3573257]
[1721599489055,0.002,68374.0,68373.0,0.7386327]
[1721599489266,0.002,68374.0,68373.0,0.7358387]
[1721599489482,0.001,68374.0,68373.0,0.4313257]
[1721599490172,0.001,68374.0,68373.0,0.2850697]
[1721599490394,0.003,68374.0,68373.0,0.25868942]
[1721599490606,0.21621991,68374.0,68373.0,0.019]
[1721599490809,0.23721991,68374.0,68373.0,0.008]
[1721599490962,0.2669619,68374.0,68373.0,0.011]
[1721599491164,0.23721991,68374.0,68373.0,0.011]
[1721599491801,0.38247391,68374.0,68363.0,0.002794]
[1721599491995,0.17001991,68373.0,68366.0,0.07348942]
[1721599492200,0.17001991,68373.0,68367.0,0.002794]
[1721599492422,0.17001991,68373.0,68366.0,0.07348942]
[1721599493199,0.292518,68372.0,68366.0,0.07348942]
[1721599493519,0.17001991,68371.0,68366.0,0.07348942]
[1721599493717,0.31628091,68371.0,68366.0,0.09348942]
[1721599494063,0.146268,68368.0,68366.0,0.009]
[1721599494220,0.17001991,68367.0,68359.0,0.08268542]
[1721599494400,0.60882691,68367.0,68366.0,0.021]
[1721599494751,0.36719971,68367.0,68366.0,0.021]
[1721599494947,0.22093071,68367.0,68366.0,0.032]
[1721599495684,0.17001991,68367.0,68366.0,0.032924]
[1721599495857,0.31628891,68367.0,68366.0,0.010924]
[1721599496031,0.31628891,68367.0,68366.0,0.000924]
[1721599496032,0.60882691,68367.0,68366.0,0.000924]
[1721599496232,0.60882691,68367.0,68366.0,0.010924]
[1721599496564,1.00747147,68367.0,68366.0,0.010924]
[1721599496768,1.44880947,68367.0,68366.0,0.000924]
[1721599496962,1.15627147,68367.0,68366.0,0.000924]
[1721599497171,1.15827147,68367.0,68366.0,0.008924]
[1721599497579,1.15727147,68367.0,68366.0,0.008924]
[1721599497822,1.15627147,68367.0,68366.0,0.000924]
[1721599498002,1.15627147,68367.0,68366.0,0.001924]
[1721599498567,0.75762691,68367.0,68366.0,0.001924]
[1721599498766,0.31881991,68367.0,68366.0,0.000924]
[1721599498974,0.31881991,68367.0,68366.0,0.005924]
[1721599499332,0.32681991,68367.0,68366.0,0.006924]
[1721599499764,0.023,68367.0,68366.0,0.005924]
[1721599499963,0.023,68371.0,68366.0,0.005924]
[1721599500111,0.005,68367.0,68366.0,0.005924]
[1721599500319,0.028,68367.0,68366.0,0.005924]
[1721599500516,0.023,68367.0,68366.0,0.005924]
[1721599500693,0.06474,68378.0,68366.0,0.005924]
[1721599500897,0.00084,68378.0,68373.0,0.292511]
[1721599501108,0.00084,68378.0,68377.0,0.19162828]
[1721599501308,0.00084,68378.0,68377.0,0.85952028]
[1721599501507,0.00084,68378.0,68377.0,0.95952028]
[1721599501739,0.00084,68378.0,68377.0,1.39903619]
[1721599501938,0.00784,68378.0,68377.0,1.39903619]